fUSD/lending_fUSD_20260513
["ID","MTS","AMOUNT","RATE_DAILY","PERIOD"]
[422144661,1778619040000,-1152.0,0.00015916,2]
[422144642,1778619040000,-150.0,0.000158,2]
[422144657,1778619040000,-150.0,0.00015879,2]
[422144726,1778619040000,-151.0,0.00016324,2]
[422144600,1778619040000,-15026.34857577,0.00015468,2]
[422144596,1778619040000,-150.0,0.00015428,2]
[422144598,1778619040000,-150.0,0.00015446,2]
[422144602,1778619040000,-150.0,0.0001549,2]
[422144604,1778619040000,-150.0,0.00015534,2]
[422144607,1778619040000,-150.0,0.00015541,2]
[422144609,1778619040000,-150.0,0.00015552,2]
[422144611,1778619040000,-150.0,0.00015573,2]
[422144620,1778619040000,-150.0,0.00015649,2]
[422144623,1778619040000,-150.0,0.00015649,2]
[422144627,1778619040000,-5019.41367791,0.00015686,2]
[422144663,1778619040000,-150.0,0.0001592,2]
[422144615,1778619040000,-150.0,0.00015573,2]
[422144617,1778619040000,-150.0,0.00015614,2]
[422144619,1778619040000,-150.0,0.00015636,2]
[422144629,1778619040000,-150.0,0.00015707,2]
[422144634,1778619040000,-150.0,0.00015738,2]
[422144631,1778619040000,-150.0,0.00015731,2]
[422144638,1778619040000,-150.0,0.00015764,2]
[422144636,1778619040000,-1252.0,0.00015757,2]
[422144647,1778619040000,-150.0,0.00015841,2]
[422144640,1778619040000,-202.78,0.00015797,2]
[422144644,1778619040000,-150.0,0.00015825,2]
[422144651,1778619040000,-150.0,0.00015862,2]
[422144654,1778619040000,-150.0,0.00015879,2]
[422144625,1778619040000,-150.0,0.00015676,2]
[422144613,1778619040000,-150.0,0.00015573,2]
[422144730,1778619040000,-151.0,0.00016324,2]
[422144724,1778619040000,-151.0,0.00016324,2]
[422144793,1778619040000,-500.0,0.00019178,2]
[422144806,1778619040000,-500.0,0.00019178,2]
[422144795,1778619040000,-500.0,0.00019178,2]
[422144808,1778619040000,-500.0,0.00019178,2]
[422144800,1778619040000,-500.0,0.00019178,2]
[422144812,1778619040000,-500.0,0.00019178,2]
[422144804,1778619040000,-500.0,0.00019178,2]
[422144798,1778619040000,-500.0,0.00019178,2]
[422144810,1778619040000,-500.0,0.00019178,2]
[422144802,1778619040000,-500.0,0.00019178,2]
[422144814,1778619040000,-500.0,0.00019178,2]
[422144816,1778619040000,-500.0,0.00019178,2]
[422144820,1778619040000,-500.0,0.00019178,2]
[422144823,1778619040000,-500.0,0.00019178,2]
[422144829,1778619040000,-500.0,0.00019178,2]
[422144825,1778619040000,-500.0,0.00019178,2]
[422144834,1778619040000,-2258.0,0.00019223,2]
[422144827,1778619040000,-500.0,0.00019178,2]
[422144832,1778619040000,-2036.65,0.00019178,2]
[422144838,1778619040000,-500.0,0.00019234,2]
[422144836,1778619040000,-500.0,0.00019234,2]
[422144840,1778619040000,-500.0,0.00019234,2]
[422144842,1778619040000,-500.0,0.00019234,2]
[422144844,1778619040000,-500.0,0.00019234,2]
[422144849,1778619040000,-500.0,0.00019234,2]
[422144847,1778619040000,-500.0,0.00019234,2]
[422144728,1778619040000,-151.0,0.00016324,2]
[422144791,1778619040000,-500.0,0.00019178,2]
[422144789,1778619040000,-3000.0,0.00019178,2]
[422144818,1778619040000,-500.0,0.00019178,2]
[422144782,1778619040000,-198.91360182,0.000185,2]
[422144787,1778619040000,-3163.0,0.00018891,2]
[422144734,1778619040000,-151.0,0.00016324,2]
[422144732,1778619040000,-151.0,0.00016324,2]
[422144722,1778619040000,-151.0,0.00016324,2]
[422144738,1778619040000,-151.0,0.00016324,2]
[422144739,1778619040000,-151.0,0.00016324,2]
[422144736,1778619040000,-151.0,0.00016324,2]
[422144741,1778619040000,-570.12,0.00016438,2]
[422144743,1778619040000,-15026.34857577,0.00016464,2]
[422144746,1778619040000,-595.38479004,0.00016643,2]
[422144750,1778619040000,-184.49,0.00016712,2]
[422144754,1778619040000,-340.18,0.00017238,2]
[422144747,1778619040000,-161.92,0.0001668,2]
[422144752,1778619040000,-151.41,0.00016767,2]
[422144720,1778619040000,-151.0,0.00016324,2]
[422144767,1778619040000,-1613.0,0.00017492,2]
[422144758,1778619040000,-161.92,0.00017347,2]
[422144756,1778619040000,-2129.0,0.00017248,2]
[422144764,1778619040000,-15026.34857577,0.0001746,2]
[422144762,1778619040000,-2000.0,0.00017401,2]
[422144769,1778619040000,-6453.0,0.00017572,2]
[422144776,1778619040000,-198.91360182,0.000182,2]
[422144778,1778619040000,-198.91360182,0.000184,2]
[422144773,1778619040000,-161.92,0.00018014,2]
[422144760,1778619040000,-528.38409247,0.0001738,2]
[422144771,1778619040000,-198.91360182,0.00018,2]
[422144780,1778619040000,-15026.34857577,0.00018456,2]
[422144784,1778619040000,-198.91360182,0.000187,2]
[422144970,1778619041000,-4961.46,0.00020548,2]
[422144925,1778619041000,-4961.46,0.00020548,2]
[422144904,1778619041000,-240.0,0.0002,2]
[422144928,1778619041000,-4961.46,0.00020548,2]
[422144924,1778619041000,-4961.46,0.00020548,2]
[422144927,1778619041000,-4961.46,0.00020548,2]
[422144917,1778619041000,-1251.0,0.0002,2]
[422144922,1778619041000,-15026.34857577,0.00020448,2]
[422144921,1778619041000,-13229.24306388,0.00020441,2]
[422144920,1778619041000,-175.0,0.0002,2]
[422144919,1778619041000,-2712.0,0.0002,2]
[422144930,1778619041000,-4961.46,0.00020548,2]
[422144933,1778619041000,-4961.46,0.00020548,2]
[422144935,1778619041000,-4961.46,0.00020548,2]
[422144950,1778619041000,-4961.46,0.00020548,2]
[422144940,1778619041000,-4961.46,0.00020548,2]
[422144942,1778619041000,-4961.46,0.00020548,2]
[422144944,1778619041000,-4961.46,0.00020548,2]
[422144946,1778619041000,-4961.46,0.00020548,2]
[422144948,1778619041000,-4961.46,0.00020548,2]
[422144959,1778619041000,-4961.46,0.00020548,2]
[422144953,1778619041000,-4961.46,0.00020548,2]
[422144961,1778619041000,-4961.46,0.00020548,2]
[422144957,1778619041000,-4961.46,0.00020548,2]
[422144963,1778619041000,-4961.46,0.00020548,2]
[422144965,1778619041000,-4961.46,0.00020548,2]
[422144955,1778619041000,-4961.46,0.00020548,2]
[422144938,1778619041000,-4961.46,0.00020548,2]
[422144902,1778619041000,-174.0,0.0002,2]
[422144853,1778619041000,-500.0,0.00019234,2]
[422144898,1778619041000,-154.0,0.0002,2]
[422144857,1778619041000,-500.0,0.00019234,2]
[422144855,1778619041000,-500.0,0.00019234,2]
[422144851,1778619041000,-500.0,0.00019234,2]
[422144864,1778619041000,-500.0,0.00019234,2]
[422144859,1778619041000,-500.0,0.00019234,2]
[422144862,1778619041000,-500.0,0.00019234,2]
[422144866,1778619041000,-500.0,0.00019234,2]
[422144867,1778619041000,-500.0,0.00019234,2]
[422144873,1778619041000,-926.0,0.00019235,2]
[422144869,1778619041000,-500.0,0.00019234,2]
[422144871,1778619041000,-1353.0,0.00019235,2]
[422144881,1778619041000,-1269.0,0.00019235,2]
[422144883,1778619041000,-930.0,0.00019235,2]
[422144877,1778619041000,-3540.0,0.00019235,2]
[422144886,1778619041000,-3629.0,0.00019235,2]
[422144890,1778619041000,-157.6032615,0.00019375,2]
[422144888,1778619041000,-7420.0,0.0001933,2]
[422144875,1778619041000,-625.0,0.00019235,2]
[422144879,1778619041000,-150.919,0.00019235,2]
[422144892,1778619041000,-15026.34857577,0.00019452,2]
[422144894,1778619041000,-1650.0,0.00019726,2]
[422144911,1778619041000,-174.0,0.0002,2]
[422144909,1778619041000,-178.0,0.0002,2]
[422144907,1778619041000,-882.0,0.0002,2]
[422144913,1778619041000,-510.0,0.0002,2]
[422144900,1778619041000,-158.0,0.0002,2]
[422144896,1778619041000,-5019.41367791,0.00019889,2]
[422144915,1778619041000,-905.86,0.0002,2]
[422144968,1778619041000,-4961.46,0.00020548,2]
[422145020,1778619041000,-421.15,0.00020882,2]
[422144983,1778619041000,-4961.46,0.00020548,2]
[422145033,1778619041000,-1251.0,0.00021,2]
[422145031,1778619041000,-510.0,0.00021,2]
[422145035,1778619041000,-175.0,0.00021,2]
[422145049,1778619041000,-3162.0,0.00021126,2]
[422145051,1778619041000,-151.41,0.00021205,2]
[422145061,1778619041000,-13229.24306388,0.00021765,2]
[422145053,1778619041000,-202.5,0.00021273,2]
[422145055,1778619041000,-541.3,0.00021273,2]
[422145063,1778619041000,-905.86,0.00021955,2]
[422145059,1778619041000,-4416.93,0.00021273,2]
[422145057,1778619041000,-2254.66,0.00021273,2]
[422145071,1778619041000,-158.0,0.00022,2]
[422145075,1778619041000,-240.0,0.00022,2]
[422145084,1778619041000,-628.0,0.00022,2]
[422145086,1778619041000,-174.0,0.00022,2]
[422145073,1778619041000,-174.0,0.00022,2]
[422145080,1778619041000,-308.0,0.00022,2]
[422145081,1778619041000,-1000.0,0.00022,2]
[422145088,1778619041000,-510.0,0.00022,2]
[422145077,1778619041000,-178.0,0.00022,2]
[422145090,1778619041000,-1251.0,0.00022,2]
[422145092,1778619041000,-175.0,0.00022,2]
[422145095,1778619041000,-528.38409247,0.00022185,2]
[422145099,1778619041000,-450.536,0.00022235,2]
[422145097,1778619041000,-1353.0,0.00022235,2]
[422145103,1778619041000,-3540.0,0.00022235,2]
[422145101,1778619041000,-625.0,0.00022235,2]
[422145029,1778619041000,-174.0,0.00021,2]
[422145047,1778619041000,-5000.01,0.0002101,2]
[422144972,1778619041000,-4961.46,0.00020548,2]
[422145045,1778619041000,-4778.46009303,0.00021,2]
[422144985,1778619041000,-4961.46,0.00020548,2]
[422144987,1778619041000,-4961.46,0.00020548,2]
[422144989,1778619041000,-4961.46,0.00020548,2]
[422144991,1778619041000,-4961.46,0.00020548,2]
[422144974,1778619041000,-4961.46,0.00020548,2]
[422144978,1778619041000,-4961.46,0.00020548,2]
[422144980,1778619041000,-4961.46,0.00020548,2]
[422145027,1778619041000,-178.0,0.00021,2]
[422144993,1778619041000,-4961.46,0.00020548,2]
[422144995,1778619041000,-4961.46,0.00020548,2]
[422144997,1778619041000,-4961.46,0.00020548,2]
[422145008,1778619041000,-150.0,0.0002058,2]
[422145012,1778619041000,-665.64,0.000206,2]
[422145010,1778619041000,-184.51963963,0.0002058,2]
[422144976,1778619041000,-4961.46,0.00020548,2]
[422144999,1778619041000,-150.0,0.0002058,2]
[422145014,1778619041000,-421.15,0.00020825,2]
[422145043,1778619041000,-10000.01,0.00021,2]
[422145026,1778619041000,-240.0,0.00021,2]
[422145041,1778619041000,-10000.01,0.00021,2]
[422145039,1778619041000,-10000.01,0.00021,2]
[422145024,1778619041000,-174.0,0.00021,2]
[422145037,1778619041000,-10000.01,0.00021,2]
[422145018,1778619041000,-280.76,0.00020852,14]
[422145016,1778619041000,-421.15,0.00020852,2]
[422145002,1778619041000,-150.0,0.0002058,2]
[422145006,1778619041000,-150.0,0.0002058,2]
[422145004,1778619041000,-150.0,0.0002058,2]
[422145022,1778619041000,-158.0,0.00021,2]
[422145187,1778619042000,-521.5438603,0.00025,2]
[422145188,1778619042000,-1262.60901248,0.00025,2]
[422145190,1778619042000,-501.068,0.00025235,2]
[422145192,1778619042000,-1269.0,0.00025235,2]
[422145183,1778619042000,-253.12706642,0.00025,2]
[422145163,1778619042000,-510.0,0.00024,2]
[422145194,1778619042000,-3629.0,0.00025235,2]
[422145180,1778619042000,-175.0,0.00025,2]
[422145178,1778619042000,-168.0,0.00025,2]
[422145176,1778619042000,-178.58,0.00024658,2]
[422145174,1778619042000,-1000.0,0.00024658,2]
[422145193,1778619042000,-930.0,0.00025235,2]
[422145185,1778619042000,-187.0,0.00025,2]
[422145201,1778619042000,-905.86,0.00025864,7]
[422145189,1778619042000,-1353.0,0.00025235,2]
[422145191,1778619042000,-3540.0,0.00025235,2]
[422145195,1778619042000,-157.60326151,0.00025493,2]
[422145197,1778619042000,-202.5,0.00025786,2]
[422145196,1778619042000,-151.41,0.00025644,2]
[422145204,1778619042000,-1700.46916719,0.00026238,2]
[422145200,1778619042000,-4416.93,0.00025786,2]
[422145202,1778619042000,-150.0,0.000259,30]
[422145198,1778619042000,-541.3,0.00025786,2]
[422145206,1778619042000,-550.0,0.00026833,2]
[422145205,1778619042000,-550.0,0.00026833,2]
[422145199,1778619042000,-2254.66,0.00025786,2]
[422145172,1778619042000,-13229.24306388,0.00024412,2]
[422145186,1778619042000,-176.0,0.00025,2]
[422145161,1778619042000,-174.0,0.00024,2]
[422145139,1778619042000,-510.0,0.00023,2]
[422145157,1778619042000,-240.0,0.00024,2]
[422145203,1778619042000,-665.64,0.000259,7]
[422145111,1778619042000,-3629.0,0.00022235,2]
[422145109,1778619042000,-930.0,0.00022235,2]
[422145120,1778619042000,-2907.0,0.00022652,5]
[422145107,1778619042000,-1269.0,0.00022235,2]
[422145114,1778619042000,-265.41,0.00022466,2]
[422145118,1778619042000,-819.34,0.00022466,2]
[422145116,1778619042000,-905.25,0.00022466,2]
[422145122,1778619042000,-2318.0,0.00022652,5]
[422145124,1778619042000,-516.94609672,0.0002271,2]
[422145126,1778619042000,-397.84647269,0.0002271,2]
[422145128,1778619042000,-158.0,0.00023,2]
[422145141,1778619042000,-1251.0,0.00023,2]
[422145143,1778619042000,-13229.24306388,0.00023088,2]
[422145145,1778619042000,-665.64,0.000232,7]
[422145130,1778619042000,-174.0,0.00023,2]
[422145132,1778619042000,-240.0,0.00023,2]
[422145147,1778619042000,-1265.0,0.00023217,2]
[422145137,1778619042000,-174.0,0.00023,2]
[422145135,1778619042000,-178.0,0.00023,2]
[422145149,1778619042000,-267.40471335,0.00023448,2]
[422145151,1778619042000,-905.86,0.00023909,2]
[422145153,1778619042000,-158.0,0.00024,2]
[422145168,1778619042000,-5019.41367791,0.00024091,2]
[422145165,1778619042000,-1251.0,0.00024,2]
[422145170,1778619042000,-232.23,0.0002411,2]
[422145159,1778619042000,-178.0,0.00024,2]
[422145155,1778619042000,-174.0,0.00024,2]
[422145207,1778619042000,-550.0,0.00026833,2]
[422145105,1778619042000,-150.0,0.00022235,2]
[422145211,1778619042000,-550.0,0.00026833,2]
[422145237,1778619042000,-496.2,0.00027272,2]
[422145250,1778619042000,-150.0,0.00027397,2]
[422145249,1778619042000,-500.0,0.00027397,2]
[422145257,1778619042000,-500.0,0.00027397,2]
[422145258,1778619042000,-500.0,0.00027397,2]
[422145251,1778619042000,-500.0,0.00027397,2]
[422145256,1778619042000,-500.0,0.00027397,2]
[422145255,1778619042000,-500.0,0.00027397,2]
[422145259,1778619042000,-385.64242803,0.00027397,2]
[422145253,1778619042000,-500.0,0.00027397,2]
[422145252,1778619042000,-500.0,0.00027397,2]
[422145254,1778619042000,-500.0,0.00027397,2]
[422145260,1778619042000,-300.0,0.00027397,2]
[422145261,1778619042000,-235.55,0.000274,7]
[422145271,1778619042000,-500.0,0.000278,7]
[422145262,1778619042000,-2390.49,0.000274,14]
[422145263,1778619042000,-496.2,0.00027447,2]
[422145268,1778619042000,-496.2,0.00027681,2]
[422145264,1778619042000,-496.2,0.00027506,2]
[422145266,1778619042000,-5000.0,0.00027584,2]
[422145265,1778619042000,-496.2,0.00027564,2]
[422145269,1778619042000,-496.2,0.00027739,2]
[422145272,1778619042000,-905.86,0.00027819,7]
[422145267,1778619042000,-496.2,0.00027623,2]
[422145270,1778619042000,-496.2,0.00027798,2]
[422145274,1778619042000,-496.2,0.00027915,2]
[422145273,1778619042000,-496.2,0.00027856,2]
[422145248,1778619042000,-500.0,0.00027397,2]
[422145239,1778619042000,-496.2,0.00027331,2]
[422145208,1778619042000,-550.0,0.00026833,2]
[422145234,1778619042000,-496.2,0.00027214,2]
[422145210,1778619042000,-550.0,0.00026833,2]
[422145209,1778619042000,-550.0,0.00026833,2]
[422145212,1778619042000,-550.0,0.00026833,2]
[422145214,1778619042000,-502.0,0.00026833,2]
[422145215,1778619042000,-173.0,0.00026849,3]
[422145213,1778619042000,-550.0,0.00026833,2]
[422145216,1778619042000,-496.2,0.00026863,2]
[422145241,1778619042000,-496.2,0.00027389,2]
[422145217,1778619042000,-496.2,0.00026922,2]
[422145219,1778619042000,-1450.0,0.00026924,2]
[422145220,1778619042000,-1450.0,0.00026924,2]
[422145221,1778619042000,-1450.0,0.00026924,2]
[422145229,1778619042000,-528.38409247,0.00026989,2]
[422145223,1778619042000,-1450.0,0.00026924,2]
[422145218,1778619042000,-1450.0,0.00026924,2]
[422145222,1778619042000,-1450.0,0.00026924,2]
[422145225,1778619042000,-1450.0,0.00026924,2]
[422145245,1778619042000,-500.0,0.00027397,2]
[422145247,1778619042000,-500.0,0.00027397,2]
[422145232,1778619042000,-496.2,0.00027155,2]
[422145243,1778619042000,-500.0,0.00027397,2]
[422145244,1778619042000,-500.0,0.00027397,2]
[422145246,1778619042000,-500.0,0.00027397,2]
[422145228,1778619042000,-496.2,0.0002698,2]
[422145224,1778619042000,-1450.0,0.00026924,2]
[422145226,1778619042000,-1450.0,0.00026924,2]
[422145230,1778619042000,-496.2,0.00027039,2]
[422145227,1778619042000,-1422.0,0.00026924,2]
[422145231,1778619042000,-496.2,0.00027097,2]
[422145313,1778619043000,-4999.0,0.0003,2]
[422145317,1778619043000,-178.58,0.00030137,2]
[422145319,1778619043000,-235.55,0.000307,7]
[422145316,1778619043000,-500.0,0.00030137,2]
[422145315,1778619043000,-151.41,0.00030082,120]
[422145303,1778619043000,-905.86,0.00029774,7]
[422145321,1778619043000,-272.221816,0.00030724,14]
[422145310,1778619043000,-400.0,0.00029791,2]
[422145312,1778619043000,-418.0,0.00029791,2]
[422145311,1778619043000,-400.0,0.00029791,2]
[422145299,1778619043000,-150.0,0.00029391,2]
[422145314,1778619043000,-193.0,0.0003,14]
[422145318,1778619043000,-200.0,0.00030137,2]
[422145337,1778619043000,-1353.0,0.00031235,2]
[422145323,1778619043000,-158.0,0.00030741,30]
[422145322,1778619043000,-154.0,0.00030741,30]
[422145324,1778619043000,-174.0,0.00030741,30]
[422145326,1778619043000,-178.0,0.0003075,30]
[422145325,1778619043000,-240.0,0.00030741,30]
[422145328,1778619043000,-174.0,0.00030751,30]
[422145327,1778619043000,-154.0,0.00030751,30]
[422145329,1778619043000,-510.0,0.00030751,30]
[422145330,1778619043000,-1251.0,0.00030751,30]
[422145331,1778619043000,-175.0,0.00030751,30]
[422145332,1778619043000,-201.51755257,0.000308,2]
[422145334,1778619043000,-201.51755256,0.000308,2]
[422145305,1778619043000,-400.0,0.00029791,2]
[422145320,1778619043000,-2390.49,0.000307,14]
[422145304,1778619043000,-400.0,0.00029791,2]
[422145291,1778619043000,-500.0,0.00028767,2]
[422145309,1778619043000,-400.0,0.00029791,2]
[422145333,1778619043000,-201.51755256,0.000308,2]
[422145277,1778619043000,-175.97,0.00028,2]
[422145283,1778619043000,-1353.0,0.00028235,2]
[422145280,1778619043000,-496.2,0.0002809,2]
[422145276,1778619043000,-665.64,0.00028,7]
[422145281,1778619043000,-496.2,0.00028148,2]
[422145282,1778619043000,-496.26428126,0.00028207,2]
[422145278,1778619043000,-175.97,0.00028,2]
[422145284,1778619043000,-3540.0,0.00028235,2]
[422145279,1778619043000,-496.2,0.00028031,2]
[422145286,1778619043000,-930.0,0.00028235,2]
[422145287,1778619043000,-3629.0,0.00028235,2]
[422145285,1778619043000,-1267.0,0.00028235,2]
[422145296,1778619043000,-150.0,0.00029391,2]
[422145288,1778619043000,-184.49,0.00028493,2]
[422145289,1778619043000,-309.0,0.0002855,2]
[422145297,1778619043000,-150.0,0.00029391,2]
[422145293,1778619043000,-150.0,0.00029391,2]
[422145290,1778619043000,-152.0,0.00028604,3]
[422145294,1778619043000,-150.0,0.00029391,2]
[422145292,1778619043000,-150.0,0.00029391,2]
[422145298,1778619043000,-150.0,0.00029391,2]
[422145302,1778619043000,-665.64,0.000297,7]
[422145308,1778619043000,-400.0,0.00029791,2]
[422145307,1778619043000,-400.0,0.00029791,2]
[422145301,1778619043000,-163.0,0.00029391,2]
[422145306,1778619043000,-400.0,0.00029791,2]
[422145300,1778619043000,-150.0,0.00029391,2]
[422145275,1778619043000,-496.2,0.00027973,2]
[422145345,1778619043000,-158.0,0.00031741,30]
[422145335,1778619043000,-200.0,0.00031096,2]
[422145366,1778619043000,-175.0,0.00032751,30]
[422145383,1778619043000,-152.0,0.00033612,5]
[422145372,1778619043000,-5000.0,0.00033245,2]
[422145373,1778619043000,-40045.0,0.00033252,60]
[422145374,1778619043000,-40045.0,0.00033336,60]
[422145382,1778619043000,-235.55,0.000336,30]
[422145371,1778619043000,-40045.0,0.00033168,60]
[422145380,1778619043000,-40045.0,0.00033504,60]
[422145376,1778619043000,-594.78310712,0.00033404,2]
[422145379,1778619043000,-174.16462492,0.000335,6]
[422145377,1778619043000,-40045.0,0.0003342,60]
[422145378,1778619043000,-7881.586633,0.000335,2]
[422145381,1778619043000,-40045.0,0.00033588,60]
[422145387,1778619043000,-158.0,0.00033741,30]
[422145388,1778619043000,-174.0,0.00033741,30]
[422145384,1778619043000,-40045.0,0.00033672,60]
[422145390,1778619043000,-178.0,0.0003375,30]
[422145386,1778619043000,-154.0,0.00033741,30]
[422145389,1778619043000,-240.0,0.00033741,30]
[422145394,1778619043000,-1251.0,0.00033751,30]
[422145392,1778619043000,-174.0,0.00033751,30]
[422145385,1778619043000,-905.86,0.00033683,14]
[422145391,1778619043000,-154.0,0.00033751,30]
[422145393,1778619043000,-510.0,0.00033751,30]
[422145395,1778619043000,-175.0,0.00033751,30]
[422145396,1778619043000,-40045.0,0.00033756,60]
[422145344,1778619043000,-154.0,0.00031741,30]
[422145364,1778619043000,-510.0,0.00032751,30]
[422145363,1778619043000,-174.0,0.00032751,30]
[422145375,1778619043000,-665.64,0.000334,7]
[422145368,1778619043000,-208.16996645,0.00033,120]
[422145369,1778619043000,-40045.0,0.00033084,60]
[422145343,1778619043000,-905.86,0.00031728,7]
[422145338,1778619043000,-3540.0,0.00031235,2]
[422145339,1778619043000,-930.0,0.00031235,2]
[422145341,1778619043000,-1000.0,0.000315,7]
[422145342,1778619043000,-500.0,0.00031507,2]
[422145340,1778619043000,-2504.675,0.00031235,2]
[422145346,1778619043000,-174.0,0.00031741,30]
[422145348,1778619043000,-178.0,0.0003175,30]
[422145349,1778619043000,-154.0,0.00031751,30]
[422145350,1778619043000,-174.0,0.00031751,30]
[422145347,1778619043000,-240.0,0.00031741,30]
[422145351,1778619043000,-510.0,0.00031751,30]
[422145352,1778619043000,-1251.0,0.00031751,30]
[422145336,1778619043000,-152.0,0.00031108,4]
[422145361,1778619043000,-178.0,0.0003275,30]
[422145355,1778619043000,-208.16996645,0.00032,120]
[422145354,1778619043000,-528.38409247,0.00031793,2]
[422145358,1778619043000,-158.0,0.00032741,30]
[422145357,1778619043000,-154.0,0.00032741,30]
[422145353,1778619043000,-175.0,0.00031751,30]
[422145360,1778619043000,-240.0,0.00032741,30]
[422145370,1778619043000,-2390.49,0.000331,14]
[422145359,1778619043000,-174.0,0.00032741,30]
[422145356,1778619043000,-228.51,0.00032055,2]
[422145362,1778619043000,-154.0,0.00032751,30]
[422145365,1778619043000,-1251.0,0.00032751,30]
[422145367,1778619043000,-168.0724151,0.00032876,2]
[422145436,1778619044000,-327.548371,0.00034008,7]
[422145435,1778619044000,-327.548371,0.00034008,7]
[422145426,1778619044000,-225.902096,0.00033924,7]
[422145439,1778619044000,-151.0,0.00034008,7]
[422145437,1778619044000,-151.0,0.00034008,7]
[422145432,1778619044000,-40045.0,0.00034008,60]
[422145427,1778619044000,-225.902096,0.00033924,7]
[422145429,1778619044000,-151.0,0.00033924,7]
[422145434,1778619044000,-327.548371,0.00034008,7]
[422145428,1778619044000,-151.0,0.00033924,7]
[422145433,1778619044000,-327.548371,0.00034008,7]
[422145440,1778619044000,-151.0,0.00034008,7]
[422145431,1778619044000,-151.0,0.00033924,7]
[422145443,1778619044000,-500.0,0.00034008,2]
[422145446,1778619044000,-500.0,0.00034008,2]
[422145441,1778619044000,-500.0,0.00034008,2]
[422145442,1778619044000,-500.0,0.00034008,2]
[422145445,1778619044000,-500.0,0.00034008,2]
[422145444,1778619044000,-500.0,0.00034008,2]
[422145447,1778619044000,-500.0,0.00034008,2]
[422145448,1778619044000,-500.0,0.00034008,2]
[422145449,1778619044000,-500.0,0.00034008,2]
[422145451,1778619044000,-500.0,0.00034008,2]
[422145450,1778619044000,-500.0,0.00034008,2]
[422145452,1778619044000,-500.0,0.00034008,2]
[422145453,1778619044000,-500.0,0.00034008,2]
[422145462,1778619044000,-500.0,0.00034008,2]
[422145438,1778619044000,-151.0,0.00034008,7]
[422145425,1778619044000,-225.902096,0.00033924,7]
[422145463,1778619044000,-500.0,0.00034008,2]
[422145424,1778619044000,-225.902096,0.00033924,7]
[422145398,1778619044000,-40045.0,0.0003384,60]
[422145399,1778619044000,-3300.0,0.000339,12]
[422145407,1778619044000,-597.427521,0.00033924,7]
[422145397,1778619044000,-393.12549837,0.00033781,7]
[422145402,1778619044000,-151.0,0.00033924,7]
[422145403,1778619044000,-151.0,0.00033924,7]
[422145406,1778619044000,-151.0,0.00033924,7]
[422145401,1778619044000,-152.639411,0.00033924,7]
[422145400,1778619044000,-40045.0,0.00033924,60]
[422145408,1778619044000,-597.427521,0.00033924,7]
[422145404,1778619044000,-151.0,0.00033924,7]
[422145405,1778619044000,-151.0,0.00033924,7]